[Event "NJSK 2018 Jeugd C"]
[Site "Assen, Netherlands"]
[Date "2018.05.05"]
[Round "9.7"]
[White "Van der Schaaf, Tristan"]
[Black "Roebers, Eline"]
[Result "1/2-1/2"]
[TimeControl "40/90m+30sec/move"]
[WhiteElo "1647"]
[BlackElo "1961"]

1. d4 {[%clk 01:30:58]} {[%emt 00:00:02]} Nf6 {[%clk 01:30:50]} {[%emt
00:00:48]} 2. c4 {[%clk 01:31:22]} {[%emt 00:00:09]} g6 {[%clk 01:31:17]}
{[%emt 00:00:06]} 3. f3 {[%clk 01:31:48]} {[%emt 00:00:08]} Bg7 {[%clk
01:31:38]} {[%emt 00:00:13]} 4. e4 {[%clk 01:32:07]} {[%emt 00:00:14]} d6
{[%clk 01:32:01]} {[%emt 00:00:11]} 5. Be3 {[%clk 01:32:23]} {[%emt 00:00:17]}
O-O {[%clk 01:32:11]} {[%emt 00:00:21]} 6. Ne2 {[%clk 01:32:42]} {[%emt
00:00:10]} Nbd7 {[%clk 01:31:49]} {[%emt 00:01:05]} 7. Qd2 {[%clk 01:32:52]}
{[%emt 00:00:16]} c5 {[%clk 01:28:01]} {[%emt 00:04:13]} 8. d5 {[%clk
01:33:13]} {[%emt 00:00:04]} a6 {[%clk 01:24:04]} {[%emt 00:03:18]} 9. Ng3
{[%clk 01:32:47]} {[%emt 00:00:55]} h5 {[%clk 01:20:29]} {[%emt 00:04:05]} 10.
Bg5 {[%clk 01:32:52]} {[%emt 00:00:27]} Re8 {[%clk 01:13:45]} {[%emt 00:07:13]}
11. Be2 {[%clk 01:31:39]} {[%emt 00:01:42]} Qb6 {[%clk 01:10:50]} {[%emt
00:03:25]} 12. Nc3 {[%clk 01:29:56]} {[%emt 00:02:13]} Ne5 {[%clk 01:06:46]}
{[%emt 00:04:35]} 13. f4 {[%clk 01:25:22]} {[%emt 00:05:03]} Ned7 {[%clk
01:02:38]} {[%emt 00:04:41]} 14. O-O {[%clk 01:24:10]} {[%emt 00:01:41]} Nh7
{[%clk 00:55:38]} {[%emt 00:07:28]} 15. Bh4 {[%clk 01:22:45]} {[%emt 00:01:54]}
Rb8 {[%clk 00:53:26]} {[%emt 00:02:56]} 16. a4 {[%clk 01:21:36]} {[%emt
00:01:26]} a5 {[%clk 00:48:15]} {[%emt 00:05:41]} 17. Nb5 {[%clk 01:19:14]}
{[%emt 00:02:52]} Nhf6 {[%clk 00:39:21]} {[%emt 00:09:24]} 18. Bd3 {[%clk
01:16:40]} {[%emt 00:03:03]} Bh6 {[%clk 00:36:04]} {[%emt 00:03:47]} 19. Qf2
{[%clk 01:12:43]} {[%emt 00:04:29]} Qd8 {[%clk 00:31:49]} {[%emt 00:04:44]} 20.
Rae1 {[%clk 01:10:14]} {[%emt 00:02:58]} Rf8 {[%clk 00:29:28]} {[%emt
00:02:52]} 21. h3 {[%clk 01:05:23]} {[%emt 00:05:21]} Ne8 {[%clk 00:22:15]}
{[%emt 00:07:44]} 22. Bc2 {[%clk 00:55:51]} {[%emt 00:10:02]} f6 {[%clk
00:19:55]} {[%emt 00:02:49]} 23. Qf3 {[%clk 00:40:56]} {[%emt 00:15:25]} Ng7
{[%clk 00:15:35]} {[%emt 00:04:49]} 24. Ne2 {[%clk 00:39:06]} {[%emt 00:02:21]}
g5 {[%clk 00:10:08]} {[%emt 00:05:58]} 25. Bg3 {[%clk 00:38:22]} {[%emt
00:01:13]} h4 {[%clk 00:08:41]} {[%emt 00:01:58]} 26. Bh2 {[%clk 00:38:26]}
{[%emt 00:00:25]} Ra8 {[%clk 00:07:02]} {[%emt 00:02:11]} 27. f5 {[%clk
00:30:27]} {[%emt 00:08:28]} Kh7 {[%emt 00:04:44]} 1/2-1/2

[Event "NJSK 2018 Jeugd C"]
[Site "Assen, Netherlands"]
[Date "2018.05.05"]
[Round "9.8"]
[White "Cchung, Nyuk Lyn"]
[Black "Maters, Arthur"]
[Result "1/2-1/2"]
[TimeControl "40/90m+30sec/move"]
[WhiteElo "1796"]
[BlackElo "1895"]

1. e4 {[%clk 01:30:57]} {[%emt 00:00:09]} c5 {[%clk 01:30:58]} {[%emt
00:00:21]} 2. Nf3 {[%clk 01:31:22]} {[%emt 00:00:24]} d6 {[%clk 01:31:24]}
{[%emt 00:00:06]} 3. d4 {[%clk 01:31:48]} {[%emt 00:00:06]} cxd4 {[%clk
01:31:49]} {[%emt 00:00:07]} 4. Nxd4 {[%clk 01:32:14]} {[%emt 00:00:06]} Nf6
{[%clk 01:32:14]} {[%emt 00:00:09]} 5. Nc3 {[%clk 01:32:36]} {[%emt 00:00:10]}
a6 {[%clk 01:32:41]} {[%emt 00:00:07]} 6. Bg5 {[%clk 01:33:00]} {[%emt
00:00:07]} e6 {[%clk 01:33:08]} {[%emt 00:00:06]} 7. f4 {[%clk 01:33:23]}
{[%emt 00:00:05]} h6 {[%clk 01:33:35]} {[%emt 00:00:06]} 8. Bh4 {[%clk
01:32:46]} {[%emt 00:01:23]} Qb6 {[%clk 01:33:55]} {[%emt 00:00:08]} 9. a3
{[%clk 01:32:31]} {[%emt 00:00:44]} Be7 {[%clk 01:34:19]} {[%emt 00:00:07]} 10.
Bf2 {[%clk 01:32:43]} {[%emt 00:00:28]} Qc7 {[%clk 01:34:44]} {[%emt 00:00:06]}
11. Qf3 {[%clk 01:33:08]} {[%emt 00:00:06]} Nbd7 {[%clk 01:34:26]} {[%emt
00:00:51]} 12. O-O-O {[%clk 01:31:14]} {[%emt 00:02:05]} b5 {[%clk 01:33:43]}
{[%emt 00:00:43]} 13. g4 {[%clk 01:31:35]} {[%emt 00:00:07]} Bb7 {[%clk
01:33:54]} {[%emt 00:00:12]} 14. g5 {[%clk 01:30:01]} {[%emt 00:01:24]} hxg5
{[%clk 01:33:11]} {[%emt 00:01:14]} 15. fxg5 {[%clk 01:30:29]} {[%emt
00:00:02]} Ne5 {[%clk 01:33:09]} {[%emt 00:00:32]} 16. Qf4 {[%clk 01:21:26]}
{[%emt 00:09:33]} Nfd7 {[%clk 01:28:43]} {[%emt 00:04:55]} 17. h4 {[%clk
01:18:10]} {[%emt 00:03:46]} Rc8 {[%clk 01:20:08]} {[%emt 00:09:06]} 18. h5
{[%clk 01:00:46]} {[%emt 00:17:53]} g6 {[%clk 01:07:50]} {[%emt 00:12:48]} 19.
hxg6 {[%clk 00:55:25]} {[%emt 00:05:51]} Nxg6 {[%clk 01:08:02]} {[%emt
00:00:18]} 20. Rxh8+ {[%clk 00:50:18]} {[%emt 00:05:37]} Nxh8 {[%clk 01:08:14]}
{[%emt 00:00:18]} 21. Qh4 {[%clk 00:50:28]} {[%emt 00:00:19]} Ng6 {[%clk
01:07:46]} {[%emt 00:00:59]} 22. Qh5 {[%clk 00:50:24]} {[%emt 00:00:34]} Qa5
{[%clk 00:58:25]} {[%emt 00:09:52]} 23. Nb3 {[%clk 00:38:55]} {[%emt 00:11:58]}
Qc7 {[%clk 00:50:35]} {[%emt 00:08:20]} 24. Be3 {[%clk 00:34:17]} {[%emt
00:05:07]} Bxe4 {[%clk 00:46:28]} {[%emt 00:04:38]} 25. Bd3 {[%clk 00:31:32]}
{[%emt 00:03:15]} Bxd3 {[%clk 00:45:50]} {[%emt 00:01:08]} 26. Rxd3 {[%clk
00:31:59]} {[%emt 00:00:02]} Nde5 {[%clk 00:45:35]} {[%emt 00:00:46]} 27. Rd1
{[%clk 00:28:39]} {[%emt 00:03:51]} Nc4 {[%clk 00:45:02]} {[%emt 00:01:02]} 28.
Bd4 {[%emt 00:00:03]} d5 {[%clk 00:40:04]} {[%emt 00:05:32]} 29. Re1 {[%clk
00:25:30]} {[%emt 00:04:01]} Qf4+ {[%clk 00:37:06]} {[%emt 00:03:28]} 30. Kb1
{[%clk 00:25:31]} {[%emt 00:00:30]} Nd2+ {[%clk 00:34:34]} {[%emt 00:03:03]} 31.
Nxd2 {[%clk 00:25:22]} {[%emt 00:00:38]} Qxd4 {[%clk 00:34:53]} {[%emt
00:00:13]} 32. Nf3 {[%clk 00:25:29]} {[%emt 00:00:21]} Qh8 {[%clk 00:32:57]}
{[%emt 00:02:26]} 33. Qg4 {[%clk 00:24:24]} {[%emt 00:01:34]} Rc4 {[%clk
00:27:56]} {[%emt 00:05:32]} 34. Qg3 {[%clk 00:24:28]} {[%emt 00:00:25]} Kd7
{[%clk 00:25:12]} {[%emt 00:03:14]} 35. Qf2 {[%clk 00:23:55]} {[%emt 00:01:03]}
Bc5 {[%clk 00:23:37]} {[%emt 00:02:05]} 36. Qf1 {[%clk 00:22:14]} {[%emt
00:02:10]} Bxa3 {[%clk 00:23:32]} {[%emt 00:00:36]} 37. Nd2 {[%clk 00:22:42]}
{[%emt 00:00:02]} Rf4 {[%clk 00:23:00]} {[%emt 00:01:03]} 38. Qg1 {[%clk
00:23:11]} Qd4 {[%clk 00:11:44]} {[%emt 00:11:46]} 39. Qxd4 {[%clk 00:20:33]}
{[%emt 00:03:08]} Rxd4 {[%clk 00:12:09]} {[%emt 00:00:05]} 40. Nb3 {[%clk
00:20:59]} {[%emt 00:00:05]} Rc4 {[%clk 00:12:28]} {[%emt 00:00:13]} 41. Na5
{[%clk 00:21:12]} {[%emt 00:00:14]} Rc7 {[%clk 00:12:03]} {[%emt 00:00:53]} 42.
Nxd5 {[%clk 00:21:06]} {[%emt 00:00:38]} exd5 {[%clk 00:12:00]} {[%emt
00:00:32]} 43. bxa3 {[%clk 00:21:29]} {[%emt 00:00:06]} Rc3 {[%clk 00:11:34]}
{[%emt 00:00:54]} 44. Nb3 {[%clk 00:21:13]} {[%emt 00:00:48]} Rg3 {[%clk
00:10:06]} {[%emt 00:01:59]} 45. Nc5+ {[%clk 00:21:26]} {[%emt 00:00:16]} Kd6
{[%clk 00:10:15]} {[%emt 00:00:20]} 46. Nxa6 {[%clk 00:21:54]} {[%emt
00:00:03]} Rxa3 {[%clk 00:09:59]} {[%emt 00:00:46]} 47. Nb4 {[%clk 00:22:10]}
{[%emt 00:00:15]} Rg3 {[%clk 00:10:23]} {[%emt 00:00:05]} 48. Rf1 {[%clk
00:22:25]} {[%emt 00:00:14]} Ne5 {[%clk 00:08:21]} {[%emt 00:02:33]} 49. Rd1
{[%clk 00:22:19]} {[%emt 00:00:36]} 1/2-1/2

[Event "NJSK 2018 Jeugd C"]
[Site "Assen, Netherlands"]
[Date "2018.05.05"]
[Round "9.9"]
[White "Bartels, Vladimir"]
[Black "Torensma, Christian"]
[Result "1-0"]
[TimeControl "40/90m+30sec/move"]
[WhiteElo "1757"]
[BlackElo "1455"]

1. e4 {[%clk 01:30:58]} {[%emt 00:00:08]} e6 {[%clk 01:30:57]} {[%emt
00:00:15]} 2. d4 {[%clk 01:31:24]} {[%emt 00:00:23]} d5 {[%clk 01:31:23]}
{[%emt 00:00:10]} 3. Nd2 {[%clk 01:31:47]} {[%emt 00:00:10]} Nf6 {[%clk
01:31:48]} {[%emt 00:00:10]} 4. e5 {[%clk 01:32:04]} {[%emt 00:00:18]} Nfd7
{[%clk 01:32:14]} {[%emt 00:00:05]} 5. Bd3 {[%clk 01:32:08]} {[%emt 00:00:35]}
c5 {[%clk 01:32:39]} {[%emt 00:00:04]} 6. c3 {[%clk 01:32:19]} {[%emt
00:00:23]} Nc6 {[%clk 01:32:55]} {[%emt 00:00:18]} 7. Ne2 {[%clk 01:32:24]}
{[%emt 00:00:59]} cxd4 {[%clk 01:33:42]} {[%emt 00:00:15]} 8. cxd4 {[%clk
01:32:42]} {[%emt 00:00:11]} f6 {[%clk 01:34:08]} {[%emt 00:00:05]} 9. Nf4
{[%clk 01:24:12]} {[%emt 00:07:39]} Qe7 {[%clk 01:34:14]} {[%emt 00:00:22]} 10.
Qh5+ {[%clk 01:22:27]} {[%emt 00:02:15]} Qf7 {[%clk 01:27:36]} {[%emt
00:07:08]} 11. Qxf7+ {[%clk 01:08:07]} {[%emt 00:14:50]} Kxf7 {[%clk 01:27:49]}
{[%emt 00:00:18]} 12. exf6 {[%clk 01:08:06]} {[%emt 00:00:30]} Nxf6 {[%emt
00:01:08]} 13. Nf3 {[%clk 01:07:47]} Bb4+ {[%clk 01:20:33]} {[%emt 00:07:57]}
14. Bd2 {[%clk 01:04:59]} {[%emt 00:03:18]} Bxd2+ {[%clk 01:18:39]} {[%emt
00:02:23]} 15. Kxd2 {[%clk 01:05:22]} {[%emt 00:00:07]} Re8 {[%clk 01:06:20]}
{[%emt 00:12:48]} 16. Rhe1 {[%clk 00:53:10]} {[%emt 00:12:43]} Kg8 {[%clk
00:52:33]} {[%emt 00:14:18]} 17. Rac1 {[%clk 00:40:22]} {[%emt 00:13:18]} a6
{[%clk 00:50:54]} {[%emt 00:02:07]} 18. h3 {[%clk 00:29:49]} {[%emt 00:11:03]}
Re7 {[%clk 00:40:44]} {[%emt 00:10:40]} 19. Re2 {[%clk 00:20:54]} {[%emt
00:09:55]} Bd7 {[%clk 00:33:51]} {[%emt 00:06:52]} 20. a4 {[%clk 00:20:59]}
{[%emt 00:00:25]} Rae8 {[%clk 00:20:40]} {[%emt 00:13:42]} 21. Rce1 {[%clk
00:19:31]} {[%emt 00:01:58]} g5 {[%clk 00:14:00]} {[%emt 00:07:10]} 22. Nxg5
{[%clk 00:15:21]} {[%emt 00:04:40]} Nxd4 {[%clk 00:14:28]} {[%emt 00:00:01]} 23.
Re3 {[%clk 00:14:32]} {[%emt 00:01:20]} e5 {[%clk 00:12:36]} {[%emt 00:02:22]}
24. Ne2 {[%clk 00:13:31]} {[%emt 00:01:30]} Nxe2 {[%clk 00:09:25]} {[%emt
00:03:43]} 25. R1xe2 {[%clk 00:13:40]} {[%emt 00:00:19]} h6 {[%clk 00:08:10]}
{[%emt 00:01:46]} 26. Bg6 {[%clk 00:03:55]} {[%emt 00:10:13]} hxg5 {[%clk
00:08:16]} {[%emt 00:00:25]} 27. Bxe8 {[%clk 00:04:18]} {[%emt 00:00:07]} Bxe8
{[%clk 00:06:51]} {[%emt 00:01:57]} 28. Rxe5 {[%clk 00:03:32]} {[%emt
00:01:13]} Ne4+ {[%clk 00:07:12]} {[%emt 00:00:10]} 29. R2xe4 {[%clk 00:03:57]}
{[%emt 00:00:08]} dxe4 {[%clk 00:07:22]} {[%emt 00:00:18]} 30. Rxe7 {[%clk
00:03:51]} 1-0

[Event "NJSK 2018 Jeugd C"]
[Site "Assen, Netherlands"]
[Date "2018.05.05"]
[Round "9.10"]
[White "Catalan, Ciro"]
[Black "Yeh, Timo"]
[Result "1/2-1/2"]
[TimeControl "40/90m+30sec/move"]
[WhiteElo "1503"]
[BlackElo "1729"]

1. d4 {[%clk 01:30:58]} {[%emt 00:00:05]} d5 {[%clk 01:30:55]} {[%emt
00:00:22]} 2. c4 {[%clk 01:31:26]} {[%emt 00:00:14]} e6 {[%clk 01:31:21]}
{[%emt 00:00:18]} 3. Nf3 {[%clk 01:31:54]} {[%emt 00:00:03]} Nf6 {[%clk
01:31:46]} {[%emt 00:00:08]} 4. g3 {[%clk 01:32:16]} {[%emt 00:00:14]} dxc4
{[%clk 01:32:07]} {[%emt 00:00:14]} 5. Bg2 {[%clk 01:32:39]} {[%emt 00:00:07]}
Nc6 {[%clk 01:32:15]} {[%emt 00:00:31]} 6. O-O {[%clk 01:32:14]} {[%emt
00:01:10]} Be7 {[%clk 01:32:34]} {[%emt 00:00:12]} 7. e3 {[%clk 01:26:25]}
{[%emt 00:05:35]} O-O {[%clk 01:32:48]} {[%emt 00:00:03]} 8. Nbd2 {[%clk
01:26:40]} {[%emt 00:00:04]} Na5 {[%clk 01:31:08]} {[%emt 00:01:53]} 9. Ne5
{[%clk 01:22:58]} {[%emt 00:04:12]} c5 {[%clk 01:30:51]} {[%emt 00:00:47]} 10.
dxc5 {[%clk 01:21:29]} {[%emt 00:01:59]} Bxc5 {[%clk 01:30:35]} {[%emt
00:00:46]} 11. Ndxc4 {[%clk 01:20:41]} {[%emt 00:01:18]} Nxc4 {[%clk 01:30:51]}
{[%emt 00:00:14]} 12. Nxc4 {[%clk 01:21:09]} {[%emt 00:00:02]} Qc7 {[%clk
01:31:02]} {[%emt 00:00:19]} 13. b3 {[%clk 01:18:57]} {[%emt 00:02:42]} Rd8
{[%clk 01:27:28]} {[%emt 00:04:03]} 14. Qe2 {[%clk 01:15:47]} {[%emt 00:03:40]}
Qe7 {[%clk 01:27:30]} {[%emt 00:00:29]} 15. Bb2 {[%clk 01:14:32]} {[%emt
00:01:45]} Bd7 {[%clk 01:24:51]} {[%emt 00:03:10]} 16. Bxb7 {[%clk 01:07:06]}
{[%emt 00:07:56]} Rab8 {[%clk 01:25:00]} {[%emt 00:00:20]} 17. Na5 {[%clk
01:00:29]} {[%emt 00:07:06]} Bb4 {[%clk 01:21:52]} {[%emt 00:03:39]} 18. Nc6
{[%clk 00:50:08]} {[%emt 00:10:50]} Bxc6 {[%clk 01:22:09]} {[%emt 00:00:15]} 19.
Bxc6 {[%clk 00:50:37]} Rd2 {[%clk 01:21:32]} {[%emt 00:01:08]} 20. Bxf6 {[%clk
00:50:09]} {[%emt 00:00:56]} Qxf6 {[%clk 01:22:01]} {[%emt 00:00:03]} 21. Qf3
{[%clk 00:43:54]} {[%emt 00:06:44]} Bc3 {[%clk 01:20:37]} {[%emt 00:01:54]} 22.
Qxf6 {[%clk 00:36:32]} {[%emt 00:07:51]} Bxf6 {[%emt 00:05:09]} 23. Rfd1 Rbd8
{[%emt 00:00:03]} 24. Rxd2 Rxd2 {[%emt 00:00:02]} 25. Rc1 {[%emt 00:00:01]}
Rxa2 {[%emt 00:00:03]} 26. Ba4 1/2-1/2

[Event "NJSK 2018 Jeugd C"]
[Site "Assen, Netherlands"]
[Date "2018.05.05"]
[Round "9.11"]
[White "Van der Hagen, Loek"]
[Black "Franke, Daniel"]
[Result "1-0"]
[TimeControl "40/90m+30sec/move"]
[WhiteElo "1815"]
[BlackElo "1298"]

1. e4 {[%clk 01:30:59]} {[%emt 00:00:03]} c5 {[%clk 01:30:58]} {[%emt
00:00:09]} 2. Nf3 {[%clk 01:31:25]} {[%emt 00:00:24]} Nc6 {[%clk 01:31:25]}
{[%emt 00:00:19]} 3. d4 {[%clk 01:31:50]} {[%emt 00:00:08]} cxd4 {[%clk
01:31:52]} {[%emt 00:00:06]} 4. Nxd4 {[%clk 01:32:15]} {[%emt 00:00:06]} e5
{[%clk 01:32:20]} {[%emt 00:00:04]} 5. Nb5 {[%clk 01:32:36]} {[%emt 00:00:15]}
Bc5 {[%clk 01:31:50]} {[%emt 00:01:11]} 6. Nd6+ {[%clk 01:32:17]} {[%emt
00:01:00]} Bxd6 {[%clk 01:32:08]} {[%emt 00:00:10]} 7. Qxd6 {[%clk 01:32:41]}
{[%emt 00:00:07]} Qf6 {[%clk 01:32:27]} {[%emt 00:00:12]} 8. Qxf6 {[%clk
01:32:30]} {[%emt 00:00:53]} Nxf6 {[%clk 01:32:50]} {[%emt 00:00:09]} 9. Nc3
{[%clk 01:32:40]} {[%emt 00:00:19]} d6 {[%clk 01:30:57]} {[%emt 00:02:10]} 10.
f3 {[%clk 01:32:29]} {[%emt 00:00:35]} Be6 {[%clk 01:29:53]} {[%emt 00:00:53]}
11. Be3 {[%clk 01:32:31]} {[%emt 00:00:07]} O-O {[%clk 01:29:05]} {[%emt
00:01:05]} 12. O-O-O {[%clk 01:32:50]} {[%emt 00:00:11]} Rfd8 {[%clk 01:27:46]}
{[%emt 00:01:49]} 13. Bb5 {[%clk 01:30:42]} {[%emt 00:02:38]} a6 {[%clk
01:22:08]} {[%emt 00:06:08]} 14. Be2 {[%clk 01:30:50]} {[%emt 00:00:22]} Rac8
{[%clk 01:19:58]} {[%emt 00:02:41]} 15. Bb6 {[%clk 01:26:16]} {[%emt 00:05:03]}
Rd7 {[%clk 01:13:14]} {[%emt 00:07:14]} 16. a3 {[%clk 01:11:21]} {[%emt
00:15:25]} d5 {[%clk 00:41:40]} {[%emt 00:32:04]} 17. exd5 {[%clk 01:09:10]}
{[%emt 00:02:41]} Nxd5 {[%clk 00:41:54]} {[%emt 00:00:16]} 18. Nxd5 {[%clk
01:04:00]} {[%emt 00:05:39]} Bxd5 {[%clk 00:35:26]} {[%emt 00:06:58]} 19. Bc4
{[%clk 00:54:02]} {[%emt 00:10:28]} Ne7 {[%clk 00:33:53]} {[%emt 00:02:03]} 20.
Bxd5 {[%clk 00:53:59]} {[%emt 00:00:33]} Rxd5 {[%clk 00:34:09]} {[%emt
00:00:14]} 21. Rxd5 {[%clk 00:53:56]} {[%emt 00:00:33]} Nxd5 {[%clk 00:34:31]}
{[%emt 00:00:09]} 22. Bf2 {[%clk 00:52:08]} {[%emt 00:02:17]} Nf4 {[%clk
00:34:00]} {[%emt 00:01:03]} 23. Bg3 {[%clk 00:48:04]} {[%emt 00:04:33]} Ne2+
{[%clk 00:32:14]} {[%emt 00:02:16]} 24. Kd2 {[%clk 00:45:56]} {[%emt 00:02:38]}
Nxg3 {[%clk 00:32:31]} {[%emt 00:00:14]} 25. hxg3 {[%clk 00:46:21]} {[%emt
00:00:04]} h6 {[%clk 00:32:34]} {[%emt 00:00:27]} 26. Rh4 {[%clk 00:46:11]}
{[%emt 00:00:39]} Rc6 {[%clk 00:26:53]} {[%emt 00:06:12]} 27. Rb4 {[%clk
00:42:39]} {[%emt 00:04:02]} Rg6 {[%clk 00:21:36]} {[%emt 00:05:45]} 28. Ke2
{[%clk 00:39:54]} {[%emt 00:03:19]} b5 {[%clk 00:19:41]} {[%emt 00:02:24]} 29.
a4 {[%clk 00:38:28]} {[%emt 00:01:56]} bxa4 {[%clk 00:19:54]} {[%emt 00:00:16]}
30. Rb8+ {[%clk 00:25:07]} {[%emt 00:13:51]} Kh7 {[%clk 00:19:56]} {[%emt
00:00:28]} 31. c4 {[%clk 00:23:43]} {[%emt 00:01:56]} Rxg3 {[%clk 00:15:19]}
{[%emt 00:05:06]} 32. c5 {[%clk 00:22:38]} {[%emt 00:01:35]} Rxg2+ {[%clk
00:14:45]} {[%emt 00:01:04]} 33. Kd3 {[%clk 00:22:51]} {[%emt 00:00:17]} Rg1
{[%clk 00:13:32]} {[%emt 00:01:42]} 34. Kd2 {[%clk 00:22:52]} {[%emt 00:00:29]}
e4 {[%clk 00:02:27]} {[%emt 00:11:36]} 35. f4 {[%clk 00:06:35]} {[%emt
00:16:46]} e3+ {[%clk 00:02:40]} {[%emt 00:00:18]} 36. Kxe3 {[%clk 00:06:34]}
{[%emt 00:00:29]} Rc1 {[%clk 00:03:00]} {[%emt 00:00:10]} 37. Kd4 {[%clk
00:05:12]} {[%emt 00:01:54]} h5 {[%clk 00:03:20]} {[%emt 00:00:09]} 38. Kd5
{[%clk 00:05:16]} {[%emt 00:00:26]} h4 {[%clk 00:03:43]} {[%emt 00:00:11]} 39.
Re8 {[%clk 00:05:21]} {[%emt 00:00:25]} f6 {[%clk 00:03:05]} {[%emt 00:01:05]}
40. c6 {[%clk 00:02:58]} {[%emt 00:02:52]} Rd1+ {[%clk 00:02:57]} {[%emt
00:00:39]} 41. Kc5 {[%clk 00:02:27]} {[%emt 00:01:01]} Rc1+ {[%clk 00:03:22]}
{[%emt 00:00:04]} 42. Kd6 {[%clk 00:02:20]} {[%emt 00:00:38]} Rd1+ {[%clk
00:01:53]} {[%emt 00:01:59]} 43. Kc5 {[%clk 00:02:45]} {[%emt 00:00:05]} h3
{[%clk 00:01:15]} {[%emt 00:01:07]} 44. Re3 {[%clk 00:02:11]} {[%emt 00:01:04]}
Rh1 {[%clk 00:00:54]} {[%emt 00:00:52]} 45. c7 {[%clk 00:02:29]} {[%emt
00:00:12]} Rc1+ {[%clk 00:01:04]} {[%emt 00:00:20]} 46. Kb6 {[%clk 00:02:49]}
{[%emt 00:00:11]} Rc2 {[%clk 00:01:01]} {[%emt 00:00:35]} 47. Rxh3 {[%clk
00:02:22]} {[%emt 00:00:54]} Kg6 {[%clk 00:01:26]} {[%emt 00:00:05]} 48. Rc3
{[%clk 00:02:39]} {[%emt 00:00:13]} Rxb2+ {[%clk 00:01:51]} {[%emt 00:00:05]}
49. Kxa6 {[%clk 00:02:53]} {[%emt 00:00:17]} a3 {[%clk 00:02:09]} {[%emt
00:00:11]} 50. c8=Q {[%clk 00:03:05]} {[%emt 00:00:18]} a2 {[%clk 00:02:24]}
{[%emt 00:00:16]} 51. Qg4 {[%clk 00:03:08]} {[%emt 00:00:27]} Kf7 {[%emt
00:01:01]} 52. Rc7+ {[%clk 00:03:28]} 1-0

[Event "NJSK 2018 Jeugd C"]
[Site "Assen, Netherlands"]
[Date "2018.05.05"]
[Round "9.12"]
[White "Van Foreest, Nanne"]
[Black "Tiggelman, Vincent"]
[Result "1-0"]
[TimeControl "40/90m+30sec/move"]
[WhiteElo "1482"]
[BlackElo "1394"]

1. e4 {[%clk 01:30:00]} {[%emt 00:02:05]} c6 {[%clk 01:30:55]} {[%emt
00:00:06]} 2. d4 {[%clk 01:30:29]} {[%emt 00:00:03]} d5 {[%clk 01:31:18]}
{[%emt 00:00:04]} 3. exd5 {[%clk 01:30:49]} {[%emt 00:00:12]} cxd5 {[%clk
01:31:42]} {[%emt 00:00:07]} 4. c4 {[%clk 01:31:18]} {[%emt 00:00:03]} Nf6
{[%clk 01:32:01]} {[%emt 00:00:13]} 5. Nc3 {[%clk 01:31:46]} {[%emt 00:00:02]}
Nc6 {[%clk 01:31:42]} {[%emt 00:00:54]} 6. Nf3 {[%clk 01:32:13]} {[%emt
00:00:05]} Bg4 {[%clk 01:31:45]} {[%emt 00:00:28]} 7. cxd5 {[%clk 01:32:20]}
{[%emt 00:00:30]} Nxd5 {[%clk 01:31:36]} {[%emt 00:00:49]} 8. Qb3 {[%clk
01:32:33]} {[%emt 00:00:15]} Bxf3 {[%clk 01:31:45]} {[%emt 00:00:24]} 9. gxf3
{[%clk 01:32:52]} {[%emt 00:00:07]} e6 {[%clk 01:31:43]} {[%emt 00:00:28]} 10.
Qxb7 {[%clk 01:32:43]} {[%emt 00:00:29]} Nxd4 {[%clk 01:31:50]} {[%emt
00:00:20]} 11. Bb5+ {[%clk 01:32:41]} {[%emt 00:00:25]} Nxb5 {[%clk 01:32:10]}
{[%emt 00:00:08]} 12. Nxb5 {[%clk 01:32:39]} {[%emt 00:00:19]} Bb4+ {[%clk
00:59:19]} {[%emt 00:32:22]} 13. Kf1 {[%clk 01:29:53]} {[%emt 00:03:16]} Rb8
{[%clk 00:45:13]} {[%emt 00:14:36]} 14. Qc6+ {[%clk 01:30:13]} {[%emt
00:00:10]} Qd7 {[%clk 00:45:26]} {[%emt 00:00:47]} 15. Qxd7+ {[%clk 01:30:19]}
Kxd7 {[%clk 00:45:48]} {[%emt 00:00:17]} 16. Nd4 {[%clk 01:29:26]} {[%emt
00:01:08]} Rhc8 {[%clk 00:40:35]} {[%emt 00:05:42]} 17. Ke2 {[%clk 01:25:06]}
{[%emt 00:04:51]} Bd6 {[%clk 00:31:50]} {[%emt 00:09:14]} 18. Kd3 {[%clk
01:22:58]} {[%emt 00:02:39]} Nb4+ {[%clk 00:29:50]} {[%emt 00:02:30]} 19. Ke2
{[%clk 01:21:38]} {[%emt 00:01:49]} Nc2 {[%clk 00:29:27]} {[%emt 00:00:54]} 20.
Nxc2 {[%clk 01:21:31]} {[%emt 00:00:36]} Rxc2+ {[%clk 00:29:53]} {[%emt
00:00:05]} 21. Kd3 {[%clk 01:21:45]} {[%emt 00:00:16]} Rxf2 {[%clk 00:26:10]}
{[%emt 00:04:13]} 22. Rg1 {[%clk 01:20:55]} {[%emt 00:01:19]} g6 {[%clk
00:25:50]} {[%emt 00:00:49]} 23. Be3 {[%clk 01:18:29]} {[%emt 00:02:58]} Rxh2
{[%clk 00:25:50]} {[%emt 00:00:30]} 24. b3 {[%clk 01:18:19]} {[%emt 00:00:40]}
h5 {[%clk 00:24:07]} {[%emt 00:02:13]} 25. Bxa7 {[%clk 01:18:17]} {[%emt
00:00:32]} Ra8 {[%clk 00:24:27]} {[%emt 00:00:10]} 26. Bd4 {[%clk 01:18:34]}
{[%emt 00:00:12]} Raxa2 {[%clk 00:24:31]} {[%emt 00:00:26]} 27. Rxa2 {[%clk
01:18:38]} {[%emt 00:00:27]} Rxa2 {[%clk 00:24:53]} {[%emt 00:00:08]} 28. Rb1
{[%clk 01:18:31]} {[%emt 00:00:37]} h4 {[%clk 00:25:12]} {[%emt 00:00:11]} 29.
Rh1 {[%clk 01:18:47]} {[%emt 00:00:15]} Bg3 {[%clk 00:24:31]} {[%emt 00:01:10]}
30. Bf6 {[%clk 01:19:10]} {[%emt 00:00:07]} Rb2 {[%clk 00:23:29]} {[%emt
00:01:32]} 31. Bxb2 {[%clk 01:19:29]} {[%emt 00:00:10]} Ke7 {[%clk 00:23:24]}
{[%emt 00:00:36]} 32. Ke3 {[%clk 01:18:36]} {[%emt 00:01:23]} f5 {[%clk
00:23:05]} {[%emt 00:00:50]} 33. f4 {[%clk 01:18:51]} {[%emt 00:00:15]} e5
{[%clk 00:22:23]} {[%emt 00:01:11]} 34. Bxe5 {[%clk 01:19:08]} {[%emt
00:00:13]} 1-0